bitfinex/quotes_ETHUSD_20260202
["timestamp","ask_amount","ask_price","bid_price","bid_amount"]
[1770040451202,12.10954815,2332.2,2330.6,2.55433343]
[1770040451406,1.22209503,2332.1,2330.8,1.48165171]
[1770040451628,12.10954815,2332.0,2330.7,0.68451288]
[1770040451827,1.22209503,2332.1,2330.9,1.48165171]
[1770040452107,0.1114021,2332.3,2331.0,1.48165171]
[1770040452636,12.22095025,2332.3,2331.0,1.48165171]
[1770040452838,12.22095025,2332.3,2331.1,1.48165171]
[1770040453133,13.10954815,2333.0,2331.7,1.48165171]
[1770040453332,0.01729393,2332.4,2331.4,1.48165171]
[1770040453533,0.01729393,2332.1,2331.3,1.48165171]
[1770040453742,0.01729393,2332.4,2331.2,1.48165171]
[1770040453944,0.01729393,2332.1,2331.2,1.48165171]
[1770040454160,12.10954815,2332.8,2330.0,3.75935571]
[1770040454161,9.62807891,2331.1,2330.0,3.75935571]
[1770040454439,0.9,2331.0,2329.7,12.17071635]
[1770040454607,0.9,2331.0,2328.9,0.001]
[1770040454608,1.53359695,2330.6,2328.9,0.001]
[1770040454802,30.65792406,2330.1,2328.0,12.17071635]
[1770040455017,1.53359695,2330.2,2326.8,0.0008004]
[1770040455018,9.62807891,2328.5,2326.8,0.0008004]
[1770040455223,1.53359695,2328.2,2326.8,0.0008004]
[1770040455421,9.20232631,2330.4,2326.8,12.17151675]
[1770040455620,9.20232631,2330.4,2326.0,0.01729393]
[1770040455621,9.62807891,2327.5,2325.5,12.18197645]
[1770040455804,0.9,2327.6,2326.0,13.0]
[1770040456014,0.267,2327.7,2327.5,0.0008016]
[1770040456227,0.0008012,2329.4,2327.5,0.000802]
[1770040456537,2.299001,2328.1,2327.5,0.000802]
[1770040456704,1.14671351,2328.2,2327.5,0.000802]
[1770040456705,0.9,2328.2,2327.5,0.000802]
[1770040456910,2.400001,2328.1,2327.5,0.000802]
[1770040457112,0.9,2328.3,2328.2,0.000802]
[1770040457311,19.871257,2328.3,2327.5,0.000802]
[1770040457508,3.77475913,2329.7,2328.2,0.0008024]
[1770040457509,0.9,2328.6,2328.2,0.0008024]
[1770040457828,0.9,2329.2,2328.2,0.0008028]
[1770040458009,0.9,2329.3,2328.2,0.0008028]
[1770040458210,0.9,2329.4,2328.2,0.0008028]
[1770040458417,2.17798242,2330.0,2328.2,0.0008028]
[1770040458418,0.9,2329.6,2328.2,0.0008028]
[1770040458609,0.18432,2329.9,2328.2,0.0008028]
[1770040458825,0.22380622,2329.5,2328.2,0.0008028]
[1770040459029,26.149621,2330.0,2328.2,0.0008028]
[1770040459225,2.12027597,2330.1,2328.2,0.0008028]
[1770040459427,24.350379,2330.0,2328.2,0.0008028]
[1770040459629,0.1024,2329.7,2328.2,0.0008028]
[1770040459936,30.0,2329.9,2328.2,0.0008032]
[1770040460137,0.2335703,2329.6,2328.2,0.0008032]
[1770040460337,2.12027597,2330.1,2328.2,0.0008032]
[1770040460643,22.256615,2330.0,2328.2,0.0008032]
[1770040461015,22.256615,2330.0,2328.4,0.001]
[1770040461217,22.256615,2329.9,2328.2,0.0008032]
[1770040461642,22.256615,2329.9,2327.5,0.000802]
[1770040461643,0.18432,2329.6,2327.5,0.000802]
[1770040461813,0.1024,2329.0,2327.5,0.000802]
[1770040462009,17.06625,2329.1,2327.5,0.000802]
[1770040462224,0.2335703,2329.2,2327.2,0.001]
[1770040462422,18.249616,2328.4,2326.9,0.9]
[1770040462633,2.14095978,2329.3,2327.5,0.0008024]
[1770040462939,4.006999,2329.3,2327.5,0.0008024]
[1770040463733,4.006999,2329.2,2327.5,0.0008024]
[1770040463911,0.0008024,2328.7,2326.9,0.9]
[1770040464114,0.1024,2329.2,2327.5,0.0008028]
[1770040464314,0.1024,2328.8,2327.5,0.0008028]
[1770040464534,0.2335703,2329.1,2327.5,0.0008028]
[1770040464721,7.398917,2328.6,2326.9,0.9]
[1770040464919,0.2335703,2328.3,2326.9,0.9]
[1770040465127,0.0008028,2328.7,2326.8,0.9018012]
[1770040465340,19.853787,2328.6,2326.8,0.9018012]
[1770040465580,17.348745,2328.6,2326.8,0.9018012]
[1770040465718,0.0008012,2328.0,2326.6,0.901]
[1770040465914,4.937834,2328.6,2326.6,0.901]
[1770040466253,4.937834,2328.6,2326.8,0.0008016]
[1770040466458,0.1024,2328.5,2326.8,0.0008016]
[1770040466622,0.1024,2328.1,2326.8,0.0008016]
[1770040466823,2.14241605,2328.7,2326.8,0.0008016]
[1770040467018,0.2335703,2328.5,2326.8,0.0008016]
[1770040467223,0.2335703,2328.1,2326.8,0.0008016]
[1770040467451,2.14241605,2328.7,2326.8,0.0008016]
[1770040467652,11.534838,2328.5,2326.8,0.0008016]
[1770040467835,0.90793178,2328.6,2325.6,1.21829765]
[1770040467836,0.0008016,2328.0,2325.6,1.21829765]
[1770040468143,0.0008016,2328.0,2325.4,0.001]
[1770040468144,13.699896,2327.8,2325.7,0.331]
[1770040468347,12.271875,2327.6,2325.7,0.331]
[1770040468643,3.734826,2327.4,2325.7,0.331]
[1770040468839,0.1024,2327.2,2325.7,0.331]
[1770040469042,17.497381,2327.9,2325.7,0.331]
[1770040469258,15.90936127,2327.9,2325.4,13.001]
[1770040469547,0.2335703,2327.5,2325.5,0.901]
[1770040469724,2.11715621,2327.9,2325.5,0.901]
[1770040469924,0.2335703,2326.9,2325.5,0.901]
[1770040470135,11.165377,2327.8,2325.5,0.901]
[1770040471147,0.1024,2327.3,2325.5,0.901]
[1770040471336,0.1024,2327.1,2325.5,0.901]
[1770040471647,7.673285,2327.8,2325.5,0.901]
[1770040472144,0.2335703,2327.5,2325.5,0.901]
[1770040472444,0.2335703,2327.1,2325.5,0.901]
[1770040472644,2.11715621,2327.9,2325.5,0.901]
[1770040472944,5.497923,2327.8,2325.5,0.901]
[1770040473123,3.1892893,2327.8,2324.8,13.0]
[1770040473447,3.1892893,2327.8,2325.5,0.901]
[1770040473448,5.600323,2327.7,2325.5,0.901]
[1770040473644,0.1024,2327.3,2325.5,0.901]
[1770040473826,0.1024,2327.1,2325.5,0.5127688]
[1770040474025,0.1024,2326.9,2325.5,13.5127688]
[1770040474354,4.302632,2327.6,2325.5,13.5127688]
[1770040474653,5.497923,2327.9,2325.6,14.35127688]
[1770040475119,0.2335703,2327.4,2325.6,14.35127688]
[1770040475321,0.2335703,2327.2,2325.6,14.35127688]
[1770040475518,0.2335703,2327.4,2325.6,14.35127688]
[1770040475519,1.07472313,2328.0,2325.6,14.35127688]
[1770040475719,25.060846,2327.9,2325.7,1.48640457]
[1770040475949,17.097514,2327.9,2325.7,1.48640457]
[1770040476152,0.1024,2327.6,2325.7,1.48640457]
[1770040476447,0.1024,2327.2,2325.7,1.48640457]
[1770040476622,0.0008016,2328.0,2325.8,1.44864046]
[1770040476820,20.136233,2327.9,2325.8,1.44864046]
[1770040477229,14.03519,2327.7,2325.8,1.44864046]
[1770040477432,4.6706943,2327.5,2325.8,1.44864046]
[1770040477645,0.0008016,2328.0,2325.8,1.44864046]
[1770040477646,0.2335703,2327.3,2325.8,1.44864046]
[1770040477851,0.58008618,2327.2,2325.8,1.44864046]
[1770040478148,6.70756964,2327.1,2325.8,1.44864046]
[1770040478352,5.07502801,2327.0,2325.8,1.44864046]
[1770040478538,0.1024,2326.8,2325.8,1.44864046]
[1770040478734,1.07469318,2328.0,2325.8,1.44864046]
[1770040478735,2.69235253,2326.7,2325.8,1.44864046]
[1770040479054,2.16086827,2327.7,2325.6,13.0]
[1770040479055,30.0,2327.5,2325.6,13.0]
[1770040479353,30.0,2327.3,2325.6,13.0]
[1770040479540,3.84858,2327.1,2325.6,13.0]
[1770040479733,0.2335703,2326.9,2325.6,13.0]
[1770040479955,22.83171804,2327.8,2325.7,14.35127688]
[1770040480157,16.743897,2327.8,2325.7,14.35127688]
[1770040480466,14.643808,2327.6,2325.7,14.35127688]
[1770040480688,0.0008016,2328.0,2325.7,14.35127688]
[1770040480689,0.1024,2327.4,2325.7,14.35127688]
[1770040480841,0.0008016,2328.0,2325.8,13.0]
[1770040481046,8.26934561,2327.9,2326.0,13.0]
[1770040481261,2.796313,2327.7,2326.0,13.0]
[1770040481465,0.0008016,2328.0,2326.0,13.0]
[1770040481466,0.90705761,2327.6,2326.0,13.0]
[1770040481676,9.455676,2327.9,2326.0,13.0]
[1770040481972,8.393002,2327.9,2326.1,1.44351277]
[1770040482343,0.2335703,2327.6,2326.1,1.44351277]
[1770040482554,2.05269,2327.5,2326.1,1.44351277]
[1770040482750,0.1024,2327.5,2326.1,14.44351277]
[1770040483454,2.36088623,2327.5,2326.1,14.44351277]
[1770040483645,0.1024,2327.3,2326.2,1.44435128]
[1770040483850,0.1024,2327.3,2326.2,1.41789553]
[1770040484065,0.1024,2327.0,2325.1,12.99338595]
[1770040484375,12.66893868,2326.9,2325.5,12.99338595]
[1770040484565,0.1024,2326.7,2325.6,14.2993386]
[1770040484777,10.41045245,2326.4,2325.7,1e-08]
[1770040484941,2.36088623,2326.5,2325.6,0.902]
[1770040485142,0.1024,2326.5,2325.6,0.90112487]
[1770040485644,1.63819146,2326.5,2325.6,0.90112487]
[1770040486876,1.63819146,2326.5,2325.7,0.001]
[1770040487079,0.1024,2326.5,2325.7,0.001]
[1770040487266,1.53579146,2327.0,2325.7,12.45599547]
[1770040487451,2.57333329,2327.1,2325.7,12.45599547]
[1770040487656,0.1024,2327.0,2325.9,12.45499547]
[1770040488580,2.57333329,2327.1,2325.9,12.45499547]
[1770040488760,1.03754183,2327.1,2325.9,12.45499547]
[1770040489679,2.57333329,2327.1,2325.9,12.45499547]
[1770040489861,2.57333329,2327.1,2326.0,13.50273963]
[1770040491358,1.53579146,2327.0,2326.0,13.50273963]
[1770040492078,2.57333329,2327.1,2326.0,13.50273963]
[1770040492589,1.03754183,2327.1,2326.0,13.50273963]
[1770040492767,2.57333329,2327.1,2326.1,0.902]
[1770040492958,1.53579146,2327.0,2326.2,1.44047396]
[1770040493156,1.53579146,2327.0,2326.2,1.42727056]
[1770040493581,0.92536292,2326.9,2326.2,1.42727056]
[1770040493793,2.57333329,2327.1,2326.2,13.43839278]
[1770040494401,1.53579146,2327.0,2326.2,13.43839278]
[1770040494560,1.03754183,2327.1,2326.1,0.902]
[1770040494561,2.25848623,2327.4,2326.4,12.01112222]
[1770040494882,0.0011,2327.7,2326.4,12.01112222]
[1770040498174,0.0011,2327.7,2326.6,12.01112222]
[1770040498902,0.0011,2327.9,2326.6,12.01112222]
[1770040499106,0.0011,2327.9,2326.8,12.01112222]
[1770040499478,0.0011,2327.9,2326.9,12.91312222]
[1770040500080,0.0011,2327.5,2326.9,12.91312222]
[1770040500581,0.0011,2327.9,2326.9,12.91312222]
[1770040500791,0.0011,2327.9,2327.1,12.01112222]
[1770040502010,0.0011,2327.9,2327.1,2.2095415]
[1770040502213,0.0011,2327.9,2326.3,1.43403928]
[1770040502214,0.1024,2327.4,2325.9,13.77875542]
[1770040502587,0.1024,2327.4,2326.0,0.901]
[1770040502792,2.36088623,2327.4,2326.1,1.46797554]
[1770040503188,10.41045245,2327.5,2326.1,13.47909776]
[1770040503189,0.1024,2327.5,2326.1,13.47909776]
[1770040503918,12.81767343,2327.5,2326.0,1.276939]
[1770040504085,0.1024,2327.0,2325.8,0.001]
[1770040504286,2.36088623,2327.0,2325.9,0.901]
[1770040504485,0.1024,2327.0,2325.9,12.91212222]
[1770040504702,0.1024,2327.1,2325.9,12.91212222]
[1770040504909,0.1024,2327.2,2326.0,1.29131222]
[1770040505314,2.36088623,2327.2,2325.9,0.901]
[1770040505519,0.1024,2327.0,2325.9,0.901]
[1770040505819,3.03047502,2327.7,2326.0,12.01112222]
[1770040506021,9.10078559,2328.0,2326.0,12.01112222]
[1770040506022,3.03127662,2328.0,2326.0,12.01112222]
[1770040506184,0.0008016,2328.0,2326.0,12.01112222]
[1770040506389,14.71637343,2327.9,2326.0,12.01112222]
[1770040506603,14.71637343,2327.9,2326.1,1.29121222]
[1770040507394,14.71637343,2327.9,2326.1,13.30233444]
[1770040507819,0.1024,2327.8,2326.1,13.30233444]
[1770040508342,0.1024,2327.8,2326.1,14.37708136]
[1770040508526,0.1024,2327.8,2326.1,14.37708146]
[1770040508727,0.1024,2327.8,2326.3,12.01112222]
[1770040508923,2.0011,2327.9,2326.3,12.01112222]
[1770040510450,3.03047502,2328.6,2326.5,12.02841615]
[1770040510622,5.31090205,2329.0,2326.9,12.01112222]
[1770040510623,0.0019028,2328.7,2326.9,12.01112222]
[1770040512415,12.81957623,2328.7,2326.9,12.01112222]
[1770040512664,0.1024,2328.2,2327.0,0.901]
[1770040512819,0.1024,2328.2,2327.0,12.91212222]
[1770040513023,0.1024,2328.6,2327.0,12.01112222]
[1770040513327,0.1024,2328.6,2327.1,0.901]
[1770040513726,0.0011,2328.5,2327.1,0.901]
[1770040513938,0.0011,2328.5,2327.1,2.19221222]
[1770040514351,0.0011,2328.5,2327.1,14.20333444]
[1770040515356,12.81877343,2328.5,2327.1,1.29121222]
[1770040515532,0.1024,2328.3,2327.2,0.901]
[1770040515858,0.1024,2328.3,2327.2,0.8877719]
[1770040516258,12.81767343,2328.3,2327.2,0.8877719]
[1770040516620,12.71527343,2328.2,2327.2,0.8877719]
[1770040516927,1.15515666,2327.7,2327.2,0.8877719]
[1770040517320,1.15515666,2327.6,2327.2,0.8877719]
[1770040519022,2.0795477,2327.6,2327.2,0.8877719]
[1770040519222,0.92439104,2327.5,2327.2,0.8877719]
[1770040519433,0.92439104,2327.4,2327.2,0.8877719]
[1770040519634,0.92439104,2327.3,2327.2,0.8877719]
[1770040520152,3.03047502,2328.4,2327.2,12.89889412]
[1770040520328,12.71637343,2328.9,2327.2,14.18878353]
[1770040520329,2.08031632,2328.2,2327.2,14.18878353]
[1770040520528,0.1024,2328.3,2327.2,14.18878353]
[1770040520725,2.08031632,2328.2,2327.2,2.17766131]
[1770040520933,2.08031632,2328.2,2327.2,0.8877719]
[1770040521131,0.1024,2328.1,2327.2,0.8877719]
[1770040521531,2.08031632,2328.0,2327.2,0.8877719]
[1770040521729,0.1024,2327.9,2327.3,0.901]
[1770040522356,2.08031632,2327.8,2327.3,0.901]
[1770040522526,0.1024,2327.7,2327.3,0.77911208]
[1770040522853,0.1024,2328.0,2327.0,0.901]
[1770040523152,0.1024,2327.8,2327.0,0.901]
[1770040524648,1.54277318,2327.5,2327.0,0.901]
[1770040525142,1.54277318,2327.6,2327.0,0.901]
[1770040526233,1.64517318,2327.8,2327.0,0.901]
[1770040526448,1.54277318,2327.9,2327.0,12.8976005]
[1770040526646,2.31404272,2328.1,2327.0,12.8976005]
[1770040526647,1.54277318,2328.0,2327.0,12.8976005]
[1770040526960,0.0011,2327.7,2327.0,12.8976005]
[1770040527127,1.54277318,2328.1,2327.0,12.8976005]
[1770040527327,3.6230895,2328.2,2327.2,11.9966005]
[1770040527760,0.0011,2327.9,2327.2,11.9966005]
[1770040528455,1.54687318,2328.5,2327.2,11.9966005]
[1770040528755,2.08031632,2328.3,2327.2,11.9966005]
[1770040530164,0.0019028,2328.7,2327.4,11.9966005]
[1770040530339,1.54277318,2328.8,2327.4,11.9966005]
[1770040530340,0.0011,2329.0,2327.7,11.9966005]
[1770040530543,0.0011,2329.0,2327.9,11.9966005]
[1770040530865,0.0011,2329.0,2328.0,111.9966005]
[1770040531964,0.0011,2329.0,2328.0,100.0]
[1770040532133,0.92350789,2328.8,2328.0,100.0]
[1770040532433,0.0011,2329.0,2328.0,101.80157126]
[1770040532632,0.92318975,2328.8,2328.0,101.80157126]
[1770040532933,0.0011,2329.0,2328.0,101.80157126]
[1770040533130,0.92318697,2328.8,2328.0,101.80157126]
[1770040533352,0.0011,2329.0,2328.0,101.80157126]
[1770040533554,0.9228579,2328.8,2328.0,101.80157126]
[1770040533778,0.0011,2329.0,2328.0,100.0]
[1770040534082,0.92290529,2328.8,2328.0,100.0]
[1770040534764,0.92290529,2328.8,2327.8,0.901]
[1770040535170,0.92290529,2328.7,2327.9,100.0]
[1770040535375,0.92290529,2328.6,2327.9,100.0]
[1770040535570,0.92290529,2328.5,2327.9,100.0]
[1770040535777,1.54387318,2328.9,2327.9,100.0]
[1770040535978,0.92358609,2328.8,2327.9,100.0]
[1770040536280,0.92358609,2328.7,2327.9,100.0]
[1770040536453,0.0011,2328.9,2328.0,11.9966005]
[1770040536958,0.0011,2329.0,2328.0,11.9966005]
[1770040537268,2.31404272,2329.5,2328.0,11.9966005]
[1770040537269,1.54357478,2330.2,2328.3,11.9966005]
[1770040537465,1.54357478,2330.2,2328.5,11.9966005]
[1770040537670,0.1024,2330.1,2328.5,11.9966005]
[1770040538058,1.54357478,2330.2,2328.5,11.9966005]
[1770040538386,0.1024,2330.1,2328.5,11.9966005]
[1770040538586,0.1024,2330.1,2328.4,2.10074041]
[1770040538587,0.1024,2329.8,2328.4,2.10074041]
[1770040538770,11.9822921,2329.8,2328.4,0.901]
[1770040538969,13.52506528,2329.6,2328.4,0.901]
[1770040539269,0.1024,2329.4,2328.4,0.901]
[1770040540395,0.0011,2329.0,2328.4,0.901]
[1770040540774,0.0011,2329.0,2328.4,0.851]
[1770040541073,0.0011,2329.0,2328.4,0.8377719]
[1770040541595,0.0008,2328.9,2328.4,0.8369719]
[1770040541890,0.0011,2329.0,2328.4,0.8369719]
[1770040542190,0.0011,2329.0,2328.4,0.65690852]
[1770040542360,0.0011,2329.0,2328.4,0.47650479]
[1770040542565,13.52506528,2328.9,2327.9,2.0]
[1770040542866,0.1024,2328.9,2328.0,0.901]
[1770040543177,0.1024,2328.9,2328.0,100.901]
[1770040543378,0.0011,2329.0,2328.0,100.901]
[1770040543690,0.1035,2329.0,2328.0,100.901]
[1770040544767,1.64627318,2329.0,2328.0,100.901]
[1770040545518,1.64627318,2329.0,2326.5,11.9877776]
[1770040545519,0.103202,2328.0,2326.5,11.9877776]
[1770040545794,0.103202,2328.0,2326.6,100.8877719]
[1770040545795,1.63895703,2327.7,2326.6,100.8877719]
[1770040546359,0.1024,2327.7,2326.7,0.901]
[1770040548466,0.1024,2327.5,2326.7,0.901]
[1770040548777,1.53735703,2327.8,2326.6,100.0]
[1770040548778,0.9214391,2327.4,2326.6,100.0]
[1770040548980,0.1024,2327.2,2326.6,100.8877719]
[1770040549180,0.9214391,2327.1,2326.6,0.901]
[1770040550398,0.1024,2327.5,2326.6,0.901]
[1770040550563,0.1024,2327.3,2326.6,0.901]
[1770040550762,0.92083764,2327.2,2326.6,0.901]
[1770040550988,0.1024,2327.3,2326.6,0.901]
[1770040551189,0.92083367,2327.2,2326.6,0.901]
[1770040551394,0.0008,2327.8,2326.7,12.66135452]
[1770040551695,0.0008032,2328.7,2326.9,12.11415417]
[1770040551900,0.92008026,2328.6,2326.9,12.11415417]
[1770040552060,0.0008032,2328.7,2326.9,12.11415417]
[1770040552061,1.02248026,2328.5,2326.9,12.11415417]
[1770040552262,0.1024,2328.5,2327.1,12.11415417]
[1770040552611,0.1024,2328.5,2327.3,12.11415417]
[1770040552612,0.92016162,2328.4,2327.3,12.11415417]
[1770040552891,0.1024,2328.5,2327.3,12.11415417]
[1770040553202,0.92014875,2328.4,2327.3,12.11415417]
[1770040553400,0.1024,2328.5,2327.3,12.11415417]
[1770040553565,0.92038879,2328.4,2327.4,1.30151542]
[1770040553765,0.1024,2328.5,2327.4,1.30151542]
[1770040553978,0.92038936,2328.4,2327.4,1.30151542]
[1770040554294,0.92038936,2328.4,2326.9,0.001]
[1770040554295,0.1024,2328.1,2326.9,0.001]
[1770040554477,0.1024,2327.9,2327.0,0.901]
[1770040554671,0.92048393,2327.8,2327.0,0.901]
[1770040556500,0.1024,2327.7,2327.0,0.851]
[1770040556697,1.02288393,2327.7,2327.0,0.851]
[1770040556994,9.58928104,2327.8,2327.0,0.851]
[1770040556995,0.1024,2327.5,2327.0,0.851]
[1770040557183,0.92048393,2327.4,2327.0,0.851]
[1770040558289,0.1024,2328.1,2327.0,0.851]
[1770040558494,0.1024,2327.9,2327.0,0.851]
[1770040558690,0.92055733,2327.8,2327.0,0.851]
[1770040559005,0.1024,2327.9,2327.0,0.851]
[1770040559304,0.92054594,2327.8,2327.0,0.851]
[1770040559519,0.0008,2328.2,2327.1,12.11415417]
[1770040559686,0.0008,2328.2,2327.0,0.851]
[1770040559687,0.0008,2328.2,2327.3,12.11415417]
[1770040560908,0.0008032,2328.7,2327.3,12.11415417]
[1770040561672,0.0008032,2328.7,2327.3,13.18835304]
[1770040561992,0.0008032,2328.7,2327.3,12.11415417]
[1770040562508,0.0008032,2328.7,2327.3,13.18835679]
[1770040562686,0.0008032,2328.7,2327.5,12.11415417]
[1770040563000,0.0008032,2328.7,2327.4,1.87818433]
[1770040563001,0.0008032,2328.7,2327.7,12.11415417]
[1770040563397,0.0011,2329.0,2327.7,13.18816532]
[1770040563608,0.0011,2329.0,2327.7,13.18817227]
[1770040563809,0.0011,2329.0,2327.7,12.11415417]
[1770040564013,0.0011,2329.0,2327.9,12.11415417]
[1770040564310,0.0011,2329.0,2327.8,1.30151542]
[1770040564522,0.0011,2329.0,2327.6,13.01515417]
[1770040564819,9.59038104,2329.0,2327.6,13.01515417]
[1770040565110,0.92002173,2328.9,2327.6,13.01515417]
[1770040565311,0.0011,2329.0,2327.6,13.01515417]
[1770040565513,0.92003705,2328.9,2327.6,13.01515417]
[1770040565807,0.92005158,2328.8,2327.6,14.31682995]
[1770040566007,0.0011,2329.0,2327.6,14.31682995]
[1770040566212,0.92006113,2328.9,2327.6,14.31682995]
[1770040566410,0.92116113,2328.8,2327.6,14.31682995]
[1770040566707,0.0011,2328.8,2327.6,14.31682995]
[1770040567377,0.92074879,2328.7,2327.6,14.31682995]
[1770040567606,12.5480159,2328.8,2327.6,0.901]
[1770040567807,1.02320957,2328.7,2327.6,0.901]
[1770040568012,0.92080957,2328.6,2327.6,0.901]
[1770040568915,0.1024,2328.5,2327.6,0.901]
[1770040569121,0.92080957,2328.4,2327.6,0.901]
[1770040571130,0.1024,2327.9,2327.1,0.001]
[1770040571305,0.1024,2327.9,2326.9,0.001]
[1770040571306,12.6493159,2327.8,2327.0,0.901]
[1770040571509,12.6493159,2327.8,2326.6,0.001]
[1770040571510,0.1024,2327.3,2326.6,0.001]
[1770040571696,0.1024,2327.1,2326.6,0.001]
[1770040571900,0.92080957,2327.0,2326.6,0.001]
[1770040573716,0.1024,2327.5,2326.6,0.001]
[1770040573901,0.92247065,2327.4,2326.6,0.001]
[1770040574101,0.92247065,2327.3,2326.6,0.001]
[1770040574403,0.92247065,2327.2,2326.6,0.001]
[1770040574601,0.1024,2327.4,2326.6,0.001]
[1770040574797,0.92246729,2327.3,2326.6,0.001]
[1770040575043,0.92246729,2327.2,2326.6,0.001]
[1770040575252,0.1024,2327.4,2326.6,0.001]
[1770040575537,0.92247439,2327.3,2326.6,0.001]
[1770040575711,0.1024,2327.4,2326.6,0.001]
[1770040575712,1.02487439,2327.2,2326.6,0.001]
[1770040575915,0.92247439,2327.1,2326.6,0.001]
[1770040576537,0.1024,2327.5,2326.6,0.001]
[1770040576704,0.1024,2327.3,2326.6,0.001]
[1770040576900,0.92243682,2327.2,2326.6,0.001]
[1770040577102,0.92243682,2327.1,2326.6,0.001]
[1770040577406,0.1024,2327.3,2326.6,0.001]
[1770040577711,0.92238473,2327.2,2326.6,0.001]
[1770040577906,0.92238473,2327.1,2326.6,0.001]
[1770040578224,0.1024,2327.5,2326.6,0.001]
[1770040578440,1.53655703,2327.6,2326.6,0.001]
[1770040578441,0.1024,2327.3,2326.6,0.001]
[1770040578618,0.92238128,2327.2,2326.6,0.001]
[1770040578817,0.92238128,2327.1,2326.6,0.001]
[1770040579050,0.1024,2327.3,2326.6,0.001]
[1770040579212,0.92233678,2327.2,2326.6,0.001]
[1770040579419,0.92233678,2327.1,2326.6,0.001]
[1770040579619,0.1024,2327.5,2326.6,0.001]
[1770040579816,0.1024,2327.3,2326.6,0.001]
[1770040580022,0.92239031,2327.2,2326.6,0.001]
[1770040580221,0.92239031,2327.2,2326.8,0.001]
[1770040580423,0.92239031,2327.2,2326.6,0.001]
[1770040582643,0.1024,2327.4,2326.6,0.001]
[1770040582842,0.92239091,2327.3,2326.6,0.001]
[1770040583044,0.92239091,2327.2,2326.6,0.001]
[1770040583221,0.1024,2327.4,2326.6,0.001]
[1770040583426,0.92242446,2327.3,2326.6,0.001]
[1770040583634,0.92242446,2327.2,2326.6,0.001]
[1770040583873,0.1024,2327.4,2326.6,0.001]
[1770040584042,0.92235179,2327.3,2326.6,0.001]
[1770040584244,0.1024,2327.4,2326.6,12.12626575]
[1770040584431,0.9222388,2327.3,2326.6,12.12626575]
[1770040584640,0.1024,2327.5,2326.6,12.12626575]
[1770040584966,0.92222789,2327.4,2326.6,12.12626575]
[1770040585130,1.15297841,2327.7,2326.7,1.21272658]
[1770040585331,0.92217451,2327.6,2326.6,12.12626575]
[1770040585530,1.63895703,2327.9,2326.6,12.12626575]
[1770040585531,0.92217451,2327.5,2326.6,12.12626575]
[1770040585731,0.1024,2327.7,2326.6,12.12626575]
[1770040585939,0.92210173,2327.6,2326.6,12.12626575]
[1770040586142,1.15297841,2327.9,2326.6,12.12626575]
[1770040586342,0.92209496,2327.8,2326.8,12.12526575]
[1770040586559,0.92209496,2327.7,2326.8,12.12526575]
[1770040586753,1.15458081,2328.0,2326.8,12.12526575]
[1770040586942,0.92207117,2327.9,2326.7,1.21272658]
[1770040587142,0.92207117,2327.8,2326.7,1.21272658]
[1770040587352,0.92207117,2327.7,2326.8,1.33389923]
[1770040587667,1.15458081,2328.0,2326.8,13.45916498]
[1770040587873,0.92212584,2327.9,2326.8,13.45916498]
[1770040588072,0.92212584,2327.8,2326.8,13.45916498]
[1770040588380,0.92212584,2327.7,2326.8,13.45916498]
[1770040588555,1.15458081,2328.0,2326.8,13.45916498]
[1770040588755,0.92212355,2327.9,2326.8,13.45916498]
[1770040588959,0.92212355,2327.8,2326.8,13.45916498]
[1770040589141,0.0011,2328.6,2327.0,12.12526575]
[1770040589338,1.15347081,2328.6,2327.0,12.12526575]
[1770040589647,13.0731485,2328.5,2327.1,13.33779233]
[1770040589861,0.1024,2328.5,2327.2,13.02626575]
[1770040590061,1.25477081,2328.5,2327.2,13.02626575]
[1770040590241,1.15347081,2328.6,2327.2,13.02626575]
[1770040590437,0.0011,2328.6,2327.2,12.97626575]
[1770040590642,0.0008,2328.4,2327.4,12.12526575]
[1770040592371,0.0011,2328.6,2327.5,12.12526575]
[1770040592554,0.0008036,2328.7,2327.6,12.12526575]
[1770040593269,0.0011,2329.0,2327.8,12.12526575]
[1770040593474,0.0011,2329.0,2327.9,0.901]
[1770040593846,13.0742485,2329.0,2327.9,0.901]
[1770040595899,0.0011,2328.8,2327.9,0.901]
[1770040596406,0.1024,2328.7,2327.9,0.901]
[1770040597374,13.1755485,2328.7,2327.6,0.0008]
[1770040597578,1.15237081,2328.6,2327.6,0.0008]
[1770040597875,1.25477081,2328.7,2327.6,0.0008]
[1770040598977,0.1024,2328.7,2327.6,12.12606575]
[1770040599182,1.15347081,2328.8,2327.6,12.12606575]
[1770040599394,0.0011,2328.8,2327.6,12.12606575]
[1770040603163,12.02317769,2328.6,2327.6,0.0008]
[1770040603366,13.99431965,2328.5,2327.6,0.0008]
[1770040603604,0.1024,2328.3,2327.6,0.0008]
[1770040603801,0.1024,2328.3,2327.2,0.901]
[1770040603802,12.02317769,2328.1,2327.2,0.901]
[1770040603967,0.92117115,2328.0,2327.2,0.901]
[1770040604266,0.1024,2327.9,2327.2,0.901]
[1770040604469,0.92117115,2327.8,2327.2,0.901]
[1770040605507,0.92117115,2327.7,2327.2,0.901]
[1770040605676,0.92117115,2327.6,2327.2,0.901]
[1770040605877,0.92213568,2327.5,2326.8,0.0018028]
[1770040606078,0.1024,2327.7,2326.8,0.0018028]
[1770040606383,0.9221527,2327.6,2326.8,0.0018028]
[1770040606689,0.9221527,2327.5,2326.8,0.0018028]
[1770040606887,0.1024,2327.7,2326.8,0.0018028]
[1770040607204,0.9222903,2327.6,2326.8,0.0018028]
[1770040607379,0.9222903,2327.5,2326.8,0.0018028]
[1770040607697,0.1024,2327.7,2326.8,0.0018028]
[1770040607901,0.92244701,2327.6,2326.8,0.0018028]
[1770040608203,0.92244701,2327.5,2326.8,0.0018028]
[1770040608415,1.25545862,2327.7,2326.8,0.0018028]
[1770040608618,0.92260919,2327.6,2326.8,0.0018028]
[1770040608797,1.15305862,2327.9,2326.8,0.0018028]
[1770040608997,1.15305862,2327.9,2327.4,0.001]
[1770040608998,0.1024,2327.8,2327.4,0.001]
[1770040609203,0.9225499,2327.7,2326.8,12.61289433]